Workbook

Sheet NBD Statement 301
G1: فوائد مدينة
G2: إيداع نقدى | L2: إيداع شيك
G3: صرف شيك | H3: =IF(I6<0,"الرصيد النهائى مدين","الرصيد النهائى دائن") -> الرصيد النهائى دائن | L3: صرف شيك
G4: مصروفات بنكية | H4: الحركة المدينة | I4: =IF(SUBTOTAL(9,G11:G1552)=0,"",SUBTOTAL(9,G11:G1552)) -> 25368080.87
G5: تحويل بنكى | H5: الحركة الدائنة | I5: =IF(SUBTOTAL(9,H11:H1552)=0,"",SUBTOTAL(9,H11:H1552)) -> 24269939.33
G6: تحصيل شيكات | H6: الرصيد | I6: =I8+I4-I5 -> 1098141.54
G7: إيداع فيزا
G8: رصيد أول الفترة
G9: =" عدد الحركات "&"( "& IF(B11<>"",COUNTA($B$11:$B$1552),"")&" حركة "&" )" -> عدد الحركات ( 321 حركة )
A10: م | B10: التاريخ | G10: مدين | H10: دائن | I10: الرصيد
A11: =IF(B11="","",1) -> 1 | B11: 2018-01-01 | G11: 357112.93 | I11: =IF(AND(G11="",H11=""),"",I8+G11-H11) -> 357112.93
A12: =IF(B12="","",A11+1) -> 2 | B12: 2019-01-02 | G12: 11345 | I12: =IF(AND(G12="",H12=""),"",I11+G12-H12) -> 368457.93
A13: =IF(B13="","",A12+1) -> 3 | B13: 2019-01-02 | G13: 1000000 | I13: =IF(AND(G13="",H13=""),"",I12+G13-H13) -> 1368457.93
A14: 4 | B14: 2019-01-02 | H14: 900000 | I14: 468457.93
A15: 5 | B15: 2019-01-02 | H15: 13.33 | I15: 468444.6
A16: 6 | B16: 2019-01-03 | G16: 26030 | I16: 494474.6
A17: 7 | B17: 2019-01-06 | G17: 27939.98 | I17: 522414.58
A18: 8 | B18: 2019-01-06 | G18: 63148.28 | I18: 585562.86
A19: 9 | B19: 2019-01-06 | G19: 19989.01 | I19: 605551.87
A20: 10 | B20: 2019-01-06 | H20: 64860 | I20: 540691.87
A21: 11 | B21: 2019-01-08 | G21: 11033.93 | I21: 551725.8
A22: 12 | B22: 2019-01-08 | G22: 41928.68 | I22: 593654.48
A23: 13 | B23: 2019-01-08 | H23: 21675 | I23: 571979.48
A24: 14 | B24: 2019-01-08 | H24: 53637 | I24: 518342.48
A25: 15 | B25: 2019-01-09 | G25: 19847.92 | I25: 538190.4
A26: 16 | B26: 2019-01-09 | H26: 69510 | I26: 468680.4
A27: 17 | B27: 2019-01-10 | G27: 11209.56 | I27: 479889.96
A28: 18 | B28: 2019-01-10 | H28: 20000 | I28: 459889.96
A29: 19 | B29: 2019-01-10 | H29: 20000 | I29: 439889.96
A30: 20 | B30: 2019-01-10 | H30: 82645 | I30: 357244.96
A31: 21 | B31: 2019-01-13 | G31: 67891.41 | I31: 425136.37
A32: 22 | B32: 2019-01-13 | G32: 41211.08 | I32: 466347.45
A33: 23 | B33: 2019-01-13 | G33: 6200 | I33: 472547.45
A34: 24 | B34: 2019-01-14 | G34: 5667.64 | I34: 478215.09
A35: 25 | B35: 2019-01-15 | G35: 20000 | I35: 498215.09
A36: 26 | B36: 2019-01-15 | G36: 7255 | I36: 505470.09
A37: 27 | B37: 2019-01-15 | H37: 69040 | I37: 436430.09
A38: 28 | B38: 2019-01-15 | H38: 18000 | I38: 418430.09
A39: 29 | B39: 2019-01-15 | H39: 75000 | I39: 343430.09
A40: 30 | B40: 2019-01-15 | H40: 244670.3 | I40: 98759.79
A41: 31 | B41: 2019-01-15 | H41: 17000 | I41: 81759.79
A42: 32 | B42: 2019-01-15 | H42: 25765 | I42: 55994.79
A43: 33 | B43: 2019-01-16 | G43: 22153.79 | I43: 78148.58
A44: 34 | B44: 2019-01-16 | H44: 13500 | I44: 64648.58
A45: 35 | B45: 2019-01-17 | G45: 518.55 | I45: 65167.13
A46: 36 | B46: 2019-01-20 | G46: 60662.47 | I46: 125829.6
A47: 37 | B47: 2019-01-20 | H47: 90000 | I47: 35829.6
A48: 38 | B48: 2019-01-23 | G48: 3815 | I48: 39644.6
A49: 39 | B49: 2019-01-27 | G49: 30561.63 | I49: 70206.23
A50: 40 | B50: 2019-01-27 | G50: 69373.69 | I50: 139579.92
A51: 41 | B51: 2019-01-27 | G51: 54057.07 | I51: 193636.99
A52: 42 | B52: 2019-01-27 | G52: 37896.23 | I52: 231533.22
A53: 43 | B53: 2019-01-27 | H53: 5 | I53: 231528.22
A54: 44 | B54: 2019-01-28 | G54: 7534.17 | I54: 239062.39
A55: 45 | B55: 2019-01-28 | H55: 67973 | I55: 171089.39
A56: 46 | B56: 2019-01-28 | H56: 136000 | I56: 35089.39
A57: 47 | B57: 2019-01-29 | G57: 4180.44 | I57: 39269.83
A58: 48 | B58: 2019-01-29 | G58: 5000000 | I58: 5039269.83
A59: 49 | B59: 2019-01-29 | H59: 200000 | I59: 4839269.83
A60: 50 | B60: 2019-01-29 | H60: 300000 | I60: 4539269.83
A61: 51 | B61: 2019-01-30 | G61: 44392.69 | I61: 4583662.52
A62: 52 | B62: 2019-01-30 | H62: 73.35 | I62: 4583589.17
A63: 53 | B63: 2019-01-30 | H63: 71.33 | I63: 4583517.84
A64: 54 | B64: 2019-01-31 | G64: 4848.77 | I64: 4588366.61
A65: 55 | B65: 2019-02-03 | H65: 150 | I65: 4588216.61
A66: 56 | B66: 2019-02-03 | H66: 0.01 | I66: 4588216.6
A67: 57 | B67: 2019-02-03 | G67: 700 | I67: 4588916.6
A68: 58 | B68: 2019-02-03 | G68: 38199.67 | I68: 4627116.27
A69: 59 | B69: 2019-02-06 | H69: 81089 | I69: 4546027.27
A70: 60 | B70: 2019-02-07 | H70: 20341 | I70: 4525686.27
A71: 61 | B71: 2019-02-10 | H71: 25000 | I71: 4500686.27
A72: 62 | B72: 2019-02-10 | H72: 400 | I72: 4500286.27
A73: 63 | B73: 2019-02-10 | H73: 150000 | I73: 4350286.27
A74: 64 | B74: 2019-02-10 | H74: 150000 | I74: 4200286.27
A75: 65 | B75: 2019-02-10 | H75: 267691 | I75: 3932595.27
A76: 66 | B76: 2019-02-11 | H76: 20000 | I76: 3912595.27
A77: =IF(B77="","",A76+1) -> 67 | B77: 2019-02-12 | H77: 7000 | I77: =IF(AND(G77="",H77=""),"",I76+G77-H77) -> 3905595.27
A78: 68 | B78: 2019-02-13 | H78: 300000 | I78: 3605595.27
A79: 69 | B79: 2019-02-17 | H79: 100000 | I79: 3505595.27
A80: 70 | B80: 2019-02-18 | H80: 275000 | I80: 3230595.27
A81: 71 | B81: 2019-02-18 | H81: 181417.6 | I81: 3049177.67
A82: 72 | B82: 2019-02-21 | H82: 45800 | I82: 3003377.67
A83: 73 | B83: 2019-02-21 | H83: 80000 | I83: 2923377.67
A84: 74 | B84: 2019-02-21 | H84: 100000 | I84: 2823377.67
A85: 75 | B85: 2019-02-21 | H85: 100000 | I85: 2723377.67
A86: 76 | B86: 2019-02-21 | H86: 24182 | I86: 2699195.67
A87: 77 | B87: 2019-02-24 | H87: 503560 | I87: 2195635.67
A88: 78 | B88: 2019-02-24 | H88: 53922 | I88: 2141713.67
A89: 79 | B89: 2019-02-24 | H89: 0.53 | I89: 2141713.14
A90: 80 | B90: 2019-02-24 | H90: 0.4 | I90: 2141712.74
A91: 81 | B91: 2019-02-24 | H91: 200245 | I91: 1941467.74
A92: 82 | B92: 2019-02-25 | H92: 14250 | I92: 1927217.74
A93: 83 | B93: 2019-02-26 | G93: 400 | I93: 1927617.74
A94: 84 | B94: 2019-02-26 | G94: 200 | I94: 1927817.74
A95: 85 | B95: 2019-02-27 | H95: 100000 | I95: 1827817.74
A96: 86 | B96: 2019-02-28 | H96: 10000 | I96: 1817817.74
A97: 87 | B97: 2019-03-03 | H97: 14997.84 | I97: 1802819.9
A98: 88 | B98: 2019-03-03 | H98: 150 | I98: 1802669.9
A99: 89 | B99: 2019-03-03 | G99: 0.01 | I99: 1802669.91
A100: 90 | B100: 2019-03-03 | H100: 503560 | I100: 1299109.91
A101: 91 | B101: 2019-03-04 | H101: 18000 | I101: 1281109.91
A102: 92 | B102: 2019-03-05 | H102: 21800 | I102: 1259309.91
A103: 93 | B103: 2019-03-06 | H103: 40500 | I103: 1218809.91
A104: 94 | B104: 2019-03-06 | H104: 40500 | I104: 1178309.91
A105: 95 | B105: 2019-03-06 | H105: 132000 | I105: 1046309.91
A106: 96 | B106: 2019-03-06 | H106: 176000 | I106: 870309.91
A107: 97 | B107: 2019-03-10 | H107: 64449 | I107: 805860.91
A108: 98 | B108: 2019-03-10 | H108: 15000 | I108: 790860.91
A109: 99 | B109: 2019-03-10 | G109: 10000 | I109: 800860.91
A110: 100 | B110: 2019-03-10 | H110: 800000 | I110: 860.91
A111: 101 | B111: 2019-03-12 | G111: 17000 | I111: 17860.91
A112: 102 | B112: 2019-03-14 | G112: 51340 | I112: 69200.91
A113: 103 | B113: 2019-03-14 | G113: 10000 | I113: 79200.91
A114: 104 | B114: 2019-03-17 | G114: 275000 | I114: 354200.91
A115: 105 | B115: 2019-03-12 | H115: 17000 | I115: 337200.91
A116: 106 | B116: 2019-03-14 | H116: 51340 | I116: 285860.91
A117: 107 | B117: 2019-03-14 | H117: 10000 | I117: 275860.91
A118: 108 | B118: 2019-03-17 | H118: 275000 | I118: 860.91
A119: 109 | B119: 2019-03-18 | G119: 11110 | I119: 11970.91
A120: 110 | B120: 2019-03-18 | G120: 60000 | I120: 71970.91
A121: 111 | B121: 2019-03-19 | G121: 29500 | I121: 101470.91
A122: 112 | B122: 2019-03-19 | G122: 35000 | I122: 136470.91
A123: 113 | B123: 2019-03-20 | G123: 100000 | I123: 236470.91
A124: 114 | B124: 2019-03-18 | H124: 11110 | I124: 225360.91
A125: 115 | B125: 2019-03-18 | H125: 18649 | I125: 206711.91
A126: 116 | B126: 2019-03-19 | H126: 39800 | I126: 166911.91
A127: 117 | B127: 2019-03-19 | H127: 29500 | I127: 137411.91
A128: 118 | B128: 2019-03-20 | H128: 35000 | I128: 102411.91
A129: 119 | B129: 2019-03-20 | H129: 100000 | I129: 2411.91
A130: 120 | B130: 2019-03-21 | G130: 132000 | I130: 134411.91
A131: 121 | B131: 2019-03-21 | H131: 132000 | I131: 2411.91
A132: 122 | B132: 2019-03-21 | G132: 403638 | I132: 406049.91 | J132: 30
A133: 123 | B133: 2019-03-21 | G133: 390000 | I133: 796049.91
A134: 124 | B134: 2019-03-21 | H134: 90000 | I134: 706049.91
A135: 125 | B135: 2019-03-21 | H135: 2125 | I135: 703924.91
A136: 126 | B136: 2019-03-21 | H136: 300000 | I136: 403924.91
A137: 127 | B137: 2019-03-21 | H137: 403638 | I137: 286.91
A138: 128 | B138: 2019-03-21 | G138: 16723.5 | I138: 17010.41
A139: 129 | B139: 2019-03-21 | H139: 16723.5 | I139: 286.91
A140: 130 | B140: 2019-03-21 | G140: 105700 | I140: 105986.91
A141: =IF(B141="","",A140+1) -> 131 | B141: 2019-03-21 | H141: 100000 | I141: =IF(AND(G141="",H141=""),"",I140+G141-H141) -> 5986.91
A142: 132 | B142: 2019-03-21 | H142: 5700 | I142: 286.91 | J142: 65332.92
A143: 133 | B143: 2019-03-25 | G143: 1210000 | I143: 1210286.91
A144: 134 | B144: 2019-03-25 | G144: 16635.95 | I144: 1226922.86
A145: 135 | B145: 2019-03-25 | H145: 16635.95 | I145: 1210286.91
A146: 136 | B146: 2019-03-25 | G146: 15000 | I146: 1225286.91
A147: 137 | B147: 2019-03-25 | H147: 15000 | I147: 1210286.91
A148: 138 | B148: 2019-03-25 | G148: 150000 | I148: 1360286.91
A149: 139 | B149: 2019-03-25 | H149: 900656 | I149: 459630.91
A150: 140 | B150: 2019-03-25 | H150: 117988 | I150: 341642.91
A151: 141 | B151: 2019-03-25 | H151: 150000 | I151: 191642.91
A152: 142 | B152: 2019-03-25 | H152: 187083 | I152: 4559.91
A153: 143 | B153: 2019-03-26 | G153: 20000 | I153: 24559.91
A154: 144 | B154: 2019-03-26 | H154: 20000 | I154: 4559.91
A155: 145 | B155: 2019-03-27 | G155: 69300 | I155: 73859.91
A156: 146 | B156: 2019-03-27 | H156: 42000 | I156: 31859.91
A157: 147 | B157: 2019-03-27 | H157: 27300 | I157: 4559.91
A158: 148 | B158: 2019-03-27 | G158: 5000 | I158: 9559.91
A159: 149 | B159: 2019-03-27 | H159: 5000 | I159: 4559.91
A160: 150 | B160: 2019-03-27 | H160: 2350 | I160: 2209.91
A161: 151 | B161: 2019-03-28 | G161: 150000 | I161: 152209.91
A162: 152 | B162: 2019-03-28 | H162: 150000 | I162: 2209.91
A163: 153 | B163: 2019-03-28 | G163: 70810 | I163: 73019.91
A164: 154 | B164: 2019-03-28 | H164: 23850 | I164: 49169.91
A165: 155 | B165: 2019-03-31 | G165: 120000 | I165: 169169.91
A166: 156 | B166: 2019-03-31 | H166: 120407 | I166: 48762.91
A167: 157 | B167: 2019-03-31 | H167: 150 | I167: 48612.91
A168: 158 | B168: 2019-03-31 | H168: 0.01 | I168: 48612.9
A169: 159 | B169: 2019-04-01 | H169: 15205 | I169: 33407.9
A170: 160 | B170: 2019-04-01 | G170: 150000 | I170: 183407.9
A171: 161 | B171: 2019-04-01 | H171: 100000 | I171: 83407.9
A172: 162 | B172: 2019-04-01 | H172: 50000 | I172: 33407.9
A173: 163 | B173: 2019-04-01 | H173: 1220.1 | I173: 32187.8
A174: 164 | B174: 2019-04-01 | H174: 13.33 | I174: 32174.47
A175: 165 | B175: 2019-04-03 | G175: 93895 | I175: 126069.47
A176: 166 | B176: 2019-04-03 | H176: 93895 | I176: 32174.47
A177: 167 | B177: 2019-04-03 | G177: 40500 | I177: 72674.47
A178: 168 | B178: 2019-04-03 | H178: 40500 | I178: 32174.47
A179: 169 | B179: 2019-04-04 | G179: 200000 | I179: 232174.47
A180: 170 | B180: 2019-04-04 | H180: 200000 | I180: 32174.47
A181: 171 | B181: 2019-04-07 | G181: 38000 | I181: 70174.47
A182: 172 | B182: 2019-04-07 | G182: 75000 | I182: 145174.47
A183: 173 | B183: 2019-04-07 | H183: 50000 | I183: 95174.47
A184: 174 | B184: 2019-04-07 | H184: 25000 | I184: 70174.47
A185: 175 | B185: 2019-04-07 | H185: 14500 | I185: 55674.47
A186: 176 | B186: 2019-04-07 | G186: 84410 | I186: 140084.47
A187: 177 | B187: 2019-04-07 | H187: 84410 | I187: 55674.47
A188: 178 | B188: 2019-04-07 | H188: 38000 | I188: 17674.47
A189: 179 | B189: 2019-04-08 | G189: 100000 | I189: 117674.47
A190: 180 | B190: 2019-04-08 | H190: 93600 | I190: 24074.47
A191: 181 | B191: 2019-04-09 | G191: 100000 | I191: 124074.47
A192: 182 | B192: 2019-04-09 | G192: 22615.07 | I192: 146689.54
A193: 183 | B193: 2019-04-09 | H193: 22615.07 | I193: 124074.47
A194: 184 | B194: 2019-04-09 | H194: 100000 | I194: 24074.47
A195: 185 | B195: 2019-04-09 | H195: 15887.52 | I195: 8186.95
A196: 186 | B196: 2019-04-11 | G196: 80000 | I196: 88186.95
A197: 187 | B197: 2019-04-11 | H197: 80000 | I197: 8186.95
A198: 188 | B198: 2019-04-11 | G198: 50000 | I198: 58186.95
A199: 189 | B199: 2019-04-11 | H199: 50000 | I199: 8186.95
A200: 190 | B200: 2019-04-15 | G200: 300000 | I200: 308186.95
... 1354 more rows
